Cogmind - Beta 10.2 @@@ ROGUE MODE // 2021.08.15 @ 15:32:58 Player: Gilgameshx13 Result: Destroyed by G-67 Veteran with Plasma Rifle Performance ------------- Evolutions (6) 3000 Regions Visited (13) 2600 Robots Destroyed (59) 295 Value Destroyed (1610) 1610 Prototype IDs (28) 560 Alien Tech Used (0) 0 Bonus (1331) 1331 TOTAL SCORE: 9396 Bonus ------- High Alert Combat Kills 31 Aligned with FarCom 300 Met Warlord at Base 500 MAIN.C Attacked Warlord 500 Cogmind --------- Core Integrity 0/1150 Matter 300/300 Energy 100/100 System Corruption 0% Temperature Cool (12) Movement Core (550) Ox10 Location -3/Proximity Caves Parts ------- > --- POWER (2) -------- (None) > --- PROPULSION (6) --- (None) > --- UTILITY (9) ------ High-capacity Storage Unit Advanced Signal Interpreter Modified TNC > --- WEAPON (2) ------- (None) > --- INVENTORY (12) --- Micro Nuclear Core Makeshift Armor Plating Relay Coupler [Grunt] (21) Relay Coupler [Hunter] (26) Minesniffer Drone Bay (10/10) Minesniffer Drone Bay (10/10) Vortex Rifle Enhanced Flamer Peak State ------------ > --- POWER ------------ Enhanced Nuclear Core Micro Nuclear Core > --- PROPULSION ------- Improved Cesium-ion Thruster Field Propulsion Drive Flying Fortress v7 > --- UTILITY ---------- Improved Coolant Injector High-capacity Storage Unit Long-range Sensor Array Advanced Signal Interpreter Makeshift Terrain Scanner Modified TNC Advanced Targeting Computer Improved Medium Armor Plating Minesniffer Drone Bay > --- WEAPON ----------- Vortex Rifle Vortex Rifle > --- INVENTORY -------- Enhanced Nuclear Core Xenon Bombardment Thruster Improved Cesium-ion Thruster Improved Heat Sink Makeshift Salvage Targeting Computer Makeshift Armor Plating Relay Coupler [Grunt] Relay Coupler [Hunter] Minesniffer Drone Bay Long-range Missile Launcher Enhanced Flamer [Rating: 113] Favorites ----------- Power Ion Engine Engine Ion Engine Power Core Enhanced Nuclear Core Reactor Light Antimatter Reactor Propulsion Aluminum Leg Leg Aluminum Leg Flight Unit Flying Fortress v7 Utility Modified TNC Device Improved Heat Sink Storage Large Storage Unit Processor Modified TNC Hackware Hacking Suite Protection Medium Reactive Plating Weapon Grenade Launcher Energy Gun Vortex Rifle Energy Cannon Beam Cannon Ballistic Gun KE Penetrator Ballistic Cannon Enhanced Gauss Cannon Launcher Grenade Launcher Slashing Weapon Power Sword Build | -11 -10 -10 -10 -9 -8 -7 -6 -5 -4 -4 -4 -4 -3 ------- Run | Scr Mat Min Exi Min Mat Fac Fac Fac Fac Upp Upp War Pro Slots Evolved 12 | . . . . . 4 2 2 2 2 . . . . Power 1 | . . . . . . . 1 . . . . . . Propulsion 4 | . . . . . 2 . . 1 1 . . . . Utility 7 | . . . . . 2 2 1 1 1 . . . . Weapon . | . . . . . . . . . . . . . . Parts Attached 74 | 6 2 . 3 1 6 13 7 16 4 . 1 8 7 Power 15 | 1 . . . . 1 4 2 1 1 . . 3 2 Engine 5 | 1 . . . . . 3 . . . . . 1 . Core 9 | . . . . . 1 1 2 1 1 . . 2 1 Reactor 1 | . . . . . . . . . . . . . 1 Propulsion 11 | 2 . . . . 1 . . 1 1 . 1 . 5 Treads . | . . . . . . . . . . . . . . Leg 2 | 2 . . . . . . . . . . . . . Wheel . | . . . . . . . . . . . . . . Hover . | . . . . . . . . . . . . . . Flight 9 | . . . . . 1 . . 1 1 . 1 . 5 Utility 23 | 1 . . 2 . 2 5 4 4 2 . . 3 . Device 8 | . . . . . . 1 1 2 2 . . 2 . Storage 3 | 1 . . 1 . . . 1 . . . . . . Processor 5 | . . . 1 . . 2 1 1 . . . . . Hackware 1 | . . . . . 1 . . . . . . . . Protection 6 | . . . . . 1 2 1 1 . . . 1 . Artifact . | . . . . . . . . . . . . . . Weapon 25 | 2 2 . 1 1 2 4 1 10 . . . 2 . Energy Gun 6 | 2 . . . . 1 1 . . . . . 2 . Energy Cannon 4 | . 1 . 1 1 . 1 . . . . . . . Ballistic Gun 6 | . . . . . . 1 . 5 . . . . . Ballistic Cannon 1 | . . . . . . . . 1 . . . . . Launcher 5 | . 1 . . . 1 . . 3 . . . . . Special Weapon . | . . . . . . . . . . . . . . Impact Weapon . | . . . . . . . . . . . . . . Slashing Weapon 3 | . . . . . . 1 1 1 . . . . . Piercing Weapon . | . . . . . . . . . . . . . . Special Melee Weapon . | . . . . . . . . . . . . . . Unidentified Prototypes 6 | . . . 2 . . 1 1 . . . . 2 . Parts Lost 22 | . . . . . . 2 . 1 . . 5 . 14 Power 5 | . . . . . . 1 . . . . 1 . 3 Propulsion 6 | . . . . . . . . . . . 1 . 5 Utility 9 | . . . . . . . . 1 . . 3 . 5 Weapon 2 | . . . . . . 1 . . . . . . 1 Highest Loss Streak 14 | . . . . . . 2 . 1 . . 4 . 14 Average Slot Usage (%) 83 | . 85 85 89 100 70 74 73 79 84 84 75 81 73 Engine 7 | . 14 14 14 14 4 4 . . . . . 2 . Core 4 | . . . . . 4 2 12 11 10 10 10 7 7 Leg 12 | . 28 28 28 28 . . . . . . . . . Flight 5 | . . . . . 8 7 6 11 15 15 13 15 14 Device 7 | . . . . . . 7 12 15 21 21 14 18 18 Storage 9 | . 14 14 14 14 9 7 6 5 5 5 5 5 5 Processor 11 | . . . 3 14 9 15 20 17 15 15 15 15 14 Protection 3 | . . . . . 8 7 6 5 5 5 3 5 3 Energy Gun 1 | . 12 . . . 7 3 . . . . . 3 6 Energy Cannon 6 | . 3 14 14 14 1 5 . . . . . . . Ballistic Gun 2 | . . . . . . 2 4 5 10 10 10 6 . Launcher 6 | . 11 14 14 14 9 2 . 1 . . . . . Naked Turns . | . . . . . . . . . . . . . . Heaviest Build 83 | 11 15 15 34 34 29 66 79 80 75 75 75 83 83 Greatest Support 89 | 20 20 20 20 20 72 72 72 80 88 88 89 89 89 Greatest Overweight (x) 13 | 3 . . 1 1 . . 1 . . . . . 13 Average Overweight (x) . | . . . . 1 . . . . . . . . . Largest Inventory Capacity 12 | 6 6 6 12 10 10 10 12 12 12 12 12 12 12 Average Capacity 10 | 5 6 6 9 10 10 10 11 12 12 12 12 12 12 Most Carried 12 | 4 6 6 10 10 10 10 12 12 11 10 9 12 12 Average Carried 9 | 1 3 6 6 9 7 9 11 11 10 9 8 10 10 Final Capacity 12 | 6 6 6 10 10 10 10 12 12 12 12 12 12 12 Final Carried 12 | 2 6 6 9 10 10 10 12 12 10 9 9 12 8 Class Distribution -------------------- 55% | Mutant 38% | Scout 6% | Scavenger-Mutant Dominant Class ---------------- Mutant | -10/Materials Mutant | -10/Mines Mutant | -10/Exiles Mutant | -9/Mines Mutant | -8/Materials Scavenger-Mutant | -7/Factory Scout | -6/Factory Scout | -5/Factory Scout | -4/Factory Scout | -4/Upper Caves Scout | -4/Upper Caves Scout | -4/Warlord Scout | -3/Proximity Caves Resources | -11 -10 -10 -10 -9 -8 -7 -6 -5 -4 -4 -4 -4 -3 ----------- Run | Scr Mat Min Exi Min Mat Fac Fac Fac Fac Upp Upp War Pro Matter Collected 1291 | 191 . 23 . 74 210 171 88 125 . 133 53 168 55 Remotely . | . . . . . . . . . . . . . . Salvage Created 1424 | . 24 36 . 83 258 531 179 212 . . . . 101 Parts 116 | . 6 8 . 18 25 23 11 14 . . . . 11 Haulers Intercepted . | . . . . . . . . . . . . . . Recyclers Shooed . | . . . . . . . . . . . . . . Parts Field Recycled . | . . . . . . . . . . . . . . Retrieved Matter . | . . . . . . . . . . . . . . Parts Self-Destructed 13 | . . . . . . . . . . . . 4 9 Prevented 13 | . . . . . . . . . . . . 13 . Kills | -11 -10 -10 -10 -9 -8 -7 -6 -5 -4 -4 -4 -4 -3 ------- Run | Scr Mat Min Exi Min Mat Fac Fac Fac Fac Upp Upp War Pro Combat Hostiles Destroyed 57 | . 3 3 . 11 11 11 5 9 . . . . 4 Guns 23 | . 1 . . . 4 4 5 5 . . . . 4 Cannons 6 | . . 1 . . . 5 . . . . . . . AOE 27 | . 2 2 . 11 7 1 . 4 . . . . . Classes Destroyed 8 | . 2 . . . 2 3 1 . . . . . . Operator 1 | . 1 . . . . . . . . . . . . Watcher 1 | . . . . . . 1 . . . . . . . Swarmer 43 | . 3 3 . 11 7 3 4 8 . . . . 4 Grunt 8 | . . . . . 3 5 . . . . . . . Brawler 1 | . . . . . . 1 . . . . . . . Sentry 2 | . . . . . . . 1 1 . . . . . Hunter 2 | . . . . . 1 1 . . . . . . . Programmer 1 | . . . . . . 1 . . . . . . . Best Kill Streak 7 | . 3 3 . 4 7 4 4 4 . . . . 3 Combat Bots Only 7 | . 3 3 . 4 7 4 4 4 . . . . 3 Max Kills in Single Turn 4 | . 2 3 . 4 3 1 2 3 . . . . 1 Gunslinging . | . . . . . . . . . . . . . . Exploded 4 | . 2 2 . 4 3 1 . 3 . . . . . Melee . | . . . . . . . . . . . . . . Uniques/NPCs Destroyed . | . . . . . . . . . . . . . . Combat | -11 -10 -10 -10 -9 -8 -7 -6 -5 -4 -4 -4 -4 -3 -------- Run | Scr Mat Min Exi Min Mat Fac Fac Fac Fac Upp Upp War Pro Damage Taken 5565 | . 103 33 . 142 369 417 151 401 229 404 672 39 2605 Core 1417 | . 54 . . 22 60 44 15 70 21 11 34 . 1086 Absorbed by Shields 171 | . . . . . . . . 78 18 45 30 . . Core Remaining (%) 90 | 100 . . . 69 89 93 98 93 . . . . . Volleys Fired 113 | . 5 1 . 8 14 33 13 29 2 . . . 8 Largest 2 | . 2 2 . 2 2 1 1 2 2 . . . 2 Hottest 120 | . 90 90 . 90 83 120 28 76 66 . . . 80 Shots Fired 140 | . 8 2 . 12 18 33 13 38 4 . . . 12 Gun 96 | . 4 . . . 14 13 13 36 4 . . . 12 Cannon 28 | . 1 1 . 6 . 20 . . . . . . . Launcher 16 | . 3 1 . 6 4 . . 2 . . . . . Special . | . . . . . . . . . . . . . . Kinetic 60 | . . . . . . 7 13 36 4 . . . . Thermal 32 | . 5 1 . 6 . 20 . . . . . . . Explosive 16 | . 3 1 . 6 4 . . 2 . . . . . Electromagnetic 20 | . . . . . 14 6 . . . . . . . Entropic 12 | . . . . . . . . . . . . . 12 Robot Hit Streak 15 | . 4 5 . 6 7 15 8 10 2 . . . 3 Robot Miss Streak 8 | . 3 . . 1 4 1 2 8 1 . . . 2 Penetration Max 1 | . . . . . . 1 1 1 . . . . . Secondary Targets 2 | . . . . . . . . . . . . . 2 Max Gunslinging Chain 1 | . . . . . . . . . . . . . 1 Shots Hit Robots 86 | . 4 1 . 3 9 27 9 23 3 . . . 7 Core Hits 75 | . 5 3 . 11 16 14 6 14 1 . . . 5 Critical Hits 3 | . . . . . . . 1 2 . . . . . Critical Kills 1 | . . . . . . . 1 . . . . . . Critical Parts Destroyed 2 | . . . . . . . . 2 . . . . . Melee Attacks . | . . . . . . . . . . . . . . Impact . | . . . . . . . . . . . . . . Slashing . | . . . . . . . . . . . . . . Piercing . | . . . . . . . . . . . . . . Sneak Attacks . | . . . . . . . . . . . . . . Combat Hostiles . | . . . . . . . . . . . . . . Follow-up Attacks . | . . . . . . . . . . . . . . Damage Inflicted 3789 | . 294 112 . 413 526 977 240 916 69 . . . 242 Guns 1437 | . 23 . . . 151 214 240 506 69 . . . 234 Cannons 760 | . 18 17 . 17 . 708 . . . . . . . Explosions 1584 | . 253 95 . 396 375 55 . 410 . . . . . Melee . | . . . . . . . . . . . . . . Ramming 8 | . . . . . . . . . . . . . 8 Kinetic 925 | . . . . . . 110 240 506 69 . . . . Thermal 838 | . 41 17 . 17 . 763 . . . . . . . Explosive 1529 | . 253 95 . 396 375 . . 410 . . . . . Electromagnetic 255 | . . . . . 151 104 . . . . . . . Impact . | . . . . . . . . . . . . . . Slashing . | . . . . . . . . . . . . . . Piercing . | . . . . . . . . . . . . . . Entropic 234 | . . . . . . . . . . . . . 234 Highest Corruption 3 | . . . . . . 3 . . . . . . . Average Corruption 2 | . . . . . . 2 . . . . . . . Corruption Purged . | . . . . . . . . . . . . . . Overload Shots . | . . . . . . . . . . . . . . Overflow Damage 93 | . . . . . . 73 . 20 . . . . . Projectiles 67 | . . . . . . 67 . . . . . . . Explosions 26 | . . . . . . 6 . 20 . . . . . Melee . | . . . . . . . . . . . . . . Knockbacks 1 | . . . . . . . . . . . . . 1 Impact 1 | . . . . . . . . . . . . . 1 Kinetic . | . . . . . . . . . . . . . . Secondary . | . . . . . . . . . . . . . . Self-Inflicted Damage 134 | . . . . . 84 47 . . . . . . 3 Shots 3 | . . . . . 2 1 . . . . . . . Rammed 2 | . . . . . . . . . . . . . 2 Targets Rammed 2 | . . . . . . . . . . . . . 2 Kicked . | . . . . . . . . . . . . . . Crushed . | . . . . . . . . . . . . . . Highest Temperature 424 | . 30 30 . 110 207 424 8 10 87 14 16 . 129 Average Temperature 72 | . 13 18 . 45 68 159 4 4 43 7 7 . 44 Received Heat Transfer 707 | . 15 . . . 90 63 30 64 41 18 71 . 315 Effects 3 | . . . . . . 3 . . . . . . . Shutdowns 1 | . . . . . . 1 . . . . . . . Interference 2 | . . . . . . 2 . . . . . . . Siege Activations . | . . . . . . . . . . . . . . Robots Corrupted . | . . . . . . . . . . . . . . Combat Hostiles . | . . . . . . . . . . . . . . Parts Fried . | . . . . . . . . . . . . . . Impact Corruptions . | . . . . . . . . . . . . . . Robots Melted 1 | . . . . . . 1 . . . . . . . Combat Hostiles 1 | . . . . . . 1 . . . . . . . Parts Melted 5 | . . . . . . 5 . . . . . . . Heat Transferred 1681 | . 87 37 . 37 . 1520 . . . . . . . Parts Sabotaged . | . . . . . . . . . . . . . . Parts Stolen 1 | . . . . . . . . . . 1 . . . Parts Stripped . | . . . . . . . . . . . . . . Power Chain Reactions 1 | . . . . . . 1 . . . . . . . Missiles Intercepted . | . . . . . . . . . . . . . . Alert | -11 -10 -10 -10 -9 -8 -7 -6 -5 -4 -4 -4 -4 -3 ------- Run | Scr Mat Min Exi Min Mat Fac Fac Fac Fac Upp Upp War Pro Peak Influence 454 | . 105 125 . 195 385 454 403 426 238 . . . . Initial 208 | . . 40 . . 27 175 163 121 208 . . . . Average 190 | . 31 123 . 84 208 311 228 262 221 . . . . Maximum Alert Level 2 | . . . . . 1 2 2 2 1 . . . . Low Security (%) 54 | 100 100 100 . 100 43 23 35 23 . . . . . Level 1 40 | . . . . . 56 58 58 71 100 . . . . Level 2 4 | . . . . . . 18 5 5 . . . . . Level 3 . | . . . . . . . . . . . . . . Level 4 . | . . . . . . . . . . . . . . Level 5 . | . . . . . . . . . . . . . . High Security . | . . . . . . . . . . . . . . Max Security . | . . . . . . . . . . . . . . Squads Dispatched 11 | . . . . . 3 2 . 5 . . 1 . . Investigation 1 | . . . . . 1 . . . . . . . . Extermination 1 | . . . . . . . . 1 . . . . . Reinforcement 8 | . . . . . 2 2 . 4 . . . . . Assault 1 | . . . . . . . . . . . 1 . . Garrison . | . . . . . . . . . . . . . . Intercept . | . . . . . . . . . . . . . . Construction Impeded . | . . . . . . . . . . . . . . Haulers Reinforced 1 | . . . . . . . . 1 . . . . . Stealth | -11 -10 -10 -10 -9 -8 -7 -6 -5 -4 -4 -4 -4 -3 --------- Run | Scr Mat Min Exi Min Mat Fac Fac Fac Fac Upp Upp War Pro Distress Signals 3 | . 1 . . . . . . 1 1 . . . . Communications Jammed . | . . . . . . . . . . . . . . Distress Signals . | . . . . . . . . . . . . . . Times Spotted 141 | . 6 3 . 11 15 20 10 25 2 8 24 4 13 Peak Tracking Total 14 | . 5 3 . 4 4 4 3 8 2 7 14 4 7 Tactical Retreats 20 | . 1 . . . . . 4 6 . 1 4 1 3 Traps | -11 -10 -10 -10 -9 -8 -7 -6 -5 -4 -4 -4 -4 -3 ------- Run | Scr Mat Min Exi Min Mat Fac Fac Fac Fac Upp Upp War Pro Traps Triggered 2 | . . . . . 1 . . 1 . . . . . Indirectly . | . . . . . . . . . . . . . . Trap Hack Attempts . | . . . . . . . . . . . . . . Triggered . | . . . . . . . . . . . . . . Disarmed . | . . . . . . . . . . . . . . Reprogrammed . | . . . . . . . . . . . . . . Reused . | . . . . . . . . . . . . . . Traps Extracted . | . . . . . . . . . . . . . . Installed . | . . . . . . . . . . . . . . Triggered 2 | . . . . . . . . . . . . 2 . Machines | -11 -10 -10 -10 -9 -8 -7 -6 -5 -4 -4 -4 -4 -3 ---------- Run | Scr Mat Min Exi Min Mat Fac Fac Fac Fac Upp Upp War Pro Machines Disabled 4 | . . . . . 3 1 . . . . . . . Max in Single Turn 2 | . . . . . 2 1 . . . . . . . Machines Sabotaged . | . . . . . . . . . . . . . . Garrisons Compromised . | . . . . . . . . . . . . . . Overloaded Fab Kills . | . . . . . . . . . . . . . . Fab Network Shutdowns . | . . . . . . . . . . . . . . Hacking | -11 -10 -10 -10 -9 -8 -7 -6 -5 -4 -4 -4 -4 -3 --------- Run | Scr Mat Min Exi Min Mat Fac Fac Fac Fac Upp Upp War Pro Machines Accessed 12 | . . . 5 . . 1 . . . . . 6 . Terminals . | . . . . . . . . . . . . . . Fabricators . | . . . . . . . . . . . . . . Repair Stations . | . . . . . . . . . . . . . . Recycling Units . | . . . . . . . . . . . . . . Scanalyzers 1 | . . . . . . 1 . . . . . . . Garrison Access . | . . . . . . . . . . . . . . Total Hacks 40 | . . . 28 . . 2 . . . . . 10 . Successful 39 | . . . 28 . . 1 . . . . . 10 . Failed 1 | . . . . . . 1 . . . . . . . Catastrophic . | . . . . . . . . . . . . . . Database Lockouts . | . . . . . . . . . . . . . . Manual 2 | . . . 2 . . . . . . . . . . Terminals . | . . . . . . . . . . . . . . Fabricators . | . . . . . . . . . . . . . . Repair Stations . | . . . . . . . . . . . . . . Recycling Units . | . . . . . . . . . . . . . . Scanalyzers 2 | . . . . . . 2 . . . . . . . Garrison Access . | . . . . . . . . . . . . . . Terminal Hacks 38 | . . . 28 . . . . . . . . 10 . Record 36 | . . . 27 . . . . . . . . 9 . Open Door 1 | . . . . . . . . . . . . 1 . EX-Prototype ID Bank 1 | . . . 1 . . . . . . . . . . Fabricator Hacks . | . . . . . . . . . . . . . . Repair Station Hacks . | . . . . . . . . . . . . . . Recycling Unit Hacks . | . . . . . . . . . . . . . . Scanalyzer 1 | . . . . . . 1 . . . . . . . Insert Component 1 | . . . . . . 1 . . . . . . . Garrison Access Hacks . | . . . . . . . . . . . . . . Unauthorized Hacks . | . . . . . . . . . . . . . . Terminals . | . . . . . . . . . . . . . . Fabricators . | . . . . . . . . . . . . . . Repair Stations . | . . . . . . . . . . . . . . Recycling Units . | . . . . . . . . . . . . . . Scanalyzers . | . . . . . . . . . . . . . . Garrison Access . | . . . . . . . . . . . . . . Data Cores Recovered . | . . . . . . . . . . . . . . Used . | . . . . . . . . . . . . . . Hacking Detections 1 | . . . . . . 1 . . . . . . . Full Trace Events . | . . . . . . . . . . . . . . Feedback Events . | . . . . . . . . . . . . . . Feedback Blocked . | . . . . . . . . . . . . . . Robot Schematics Acquired . | . . . . . . . . . . . . . . Robots Built . | . . . . . . . . . . . . . . Matter . | . . . . . . . . . . . . . . Time . | . . . . . . . . . . . . . . Total Robot Build Rating . | . . . . . . . . . . . . . . Part Schematics Acquired . | . . . . . . . . . . . . . . Parts Built . | . . . . . . . . . . . . . . Matter . | . . . . . . . . . . . . . . Time . | . . . . . . . . . . . . . . Total Part Build Rating . | . . . . . . . . . . . . . . Parts Repaired . | . . . . . . . . . . . . . . Time . | . . . . . . . . . . . . . . Parts Recycled . | . . . . . . . . . . . . . . Recycled Matter . | . . . . . . . . . . . . . . Retrieved Matter . | . . . . . . . . . . . . . . Retrieved Components . | . . . . . . . . . . . . . . Parts Scanalyzed 1 | . . . . . . 1 . . . . . . . Part Schematics Acquired . | . . . . . . . . . . . . . . Parts Damaged . | . . . . . . . . . . . . . . Bothacking | -11 -10 -10 -10 -9 -8 -7 -6 -5 -4 -4 -4 -4 -3 ------------ Run | Scr Mat Min Exi Min Mat Fac Fac Fac Fac Upp Upp War Pro Used RIF Installer . | . . . . . . . . . . . . . . Robots Hacked . | . . . . . . . . . . . . . . Non-combat . | . . . . . . . . . . . . . . Combat . | . . . . . . . . . . . . . . Robot Hacks Applied . | . . . . . . . . . . . . . . Relay Couplers Released . | . . . . . . . . . . . . . . Robots Rewired . | . . . . . . . . . . . . . . Allies Hacked . | . . . . . . . . . . . . . . Hacks Repelled . | . . . . . . . . . . . . . . Allies | -11 -10 -10 -10 -9 -8 -7 -6 -5 -4 -4 -4 -4 -3 -------- Run | Scr Mat Min Exi Min Mat Fac Fac Fac Fac Upp Upp War Pro Total Allies . | . . . . . . . . . . . . . . Largest Group . | . . . . . . . . . . . . . . Highest-Rated Group . | . . . . . . . . . . . . . . Highest-Rated Ally . | . . . . . . . . . . . . . . Total Orders 5 | . . . . . . . . . 3 1 . 1 . EXPLORE 3 | . . . . . . . . . 1 1 . 1 . RETURN 2 | . . . . . . . . . 2 . . . . Ally Attacks . | . . . . . . . . . . . . . . Total Damage . | . . . . . . . . . . . . . . Kills . | . . . . . . . . . . . . . . Allies Corrupted . | . . . . . . . . . . . . . . Allies Melted . | . . . . . . . . . . . . . . Intel | -11 -10 -10 -10 -9 -8 -7 -6 -5 -4 -4 -4 -4 -3 ------- Run | Scr Mat Min Exi Min Mat Fac Fac Fac Fac Upp Upp War Pro Robot Analysis Total . | . . . . . . . . . . . . . . Derelict Logs Recovered 1 | . . . . 1 . . . . . . . . . Drone Launches 7 | . . . . . . . . . 3 3 . 1 . Drone Recoveries 5 | . . . . . . . . . 3 1 . 1 . Exploration | -11 -10 -10 -10 -9 -8 -7 -6 -5 -4 -4 -4 -4 -3 ------------- Run | Scr Mat Min Exi Min Mat Fac Fac Fac Fac Upp Upp War Pro Turns Passed 5074 | 80 130 119 1261 768 149 487 528 560 101 159 112 275 345 Spaces Moved 7123 | 55 92 97 872 496 201 747 956 1157 261 467 309 711 702 Core 27 | 23 . . . . . . . . . . . . 4 Treads . | . . . . . . . . . . . . . . Legs 1589 | 32 92 97 872 496 . . . . . . . . . Wheels . | . . . . . . . . . . . . . . Hover . | . . . . . . . . . . . . . . Flight 5507 | . . . . . 201 747 956 1157 261 467 309 711 698 Fastest Speed 34 | 50 120 120 120 150 50 50 50 39 34 34 34 35 34 Average Speed 64 | 120 120 120 143 150 50 50 50 39 34 34 35 35 42 Slowest Speed 700 | 200 120 120 150 150 50 50 150 39 34 34 39 35 700 Overloaded Moves . | . . . . . . . . . . . . . . Propulsion Burnouts . | . . . . . . . . . . . . . . Robots Hopped 17 | . . . . . . 2 . . 2 5 4 4 . Cave-ins Triggered . | . . . . . . . . . . . . . . Exploration Rate (%) 42 | 5 27 20 93 83 20 19 20 29 11 76 48 82 55 Regions Visited 13 Branch Regions 7 Pre-discovered Areas 1 | . . . 1 . . . . . . . . . . Known Exits Taken 5 | . . . . . . . . 1 1 1 1 1 . Unknown Exits Taken 8 | 1 1 1 1 1 1 1 1 . . . . . . Scrap Searched 5 | . . . . 2 . . . . . 2 . . 1 Spaces Dug 11 | . . . . 11 . . . . . . . . . Terrain Destroyed 116 | . 13 7 . 45 26 8 1 9 . . . . 7 Melee . | . . . . . . . . . . . . . . Projectile 12 | . . . . . . 2 1 2 . . . . 7 AOE 104 | . 13 7 . 45 26 6 . 7 . . . . . Terrain Rammed . | . . . . . . . . . . . . . . Walls Destroyed . | . . . . . . . . . . . . . . Machines Disabled . | . . . . . . . . . . . . . . Actions | -11 -10 -10 -10 -9 -8 -7 -6 -5 -4 -4 -4 -4 -3 --------- Run | Scr Mat Min Exi Min Mat Fac Fac Fac Fac Upp Upp War Pro Total 7443 | 68 102 97 883 509 230 828 993 1229 265 461 306 735 737 Wait 8 | . . . . . . 1 . . 1 . . . 6 Move 7076 | 54 91 96 871 495 200 742 955 1156 256 456 300 702 702 Hop 17 | . . . . . . 2 . . 2 5 4 4 . Pick Up 92 | 8 4 . 5 3 7 21 10 16 . . 1 14 3 Fast Attach . | . . . . . . . . . . . . . . Attach 43 | 6 . . 2 . 3 5 3 10 2 . 1 5 6 Detach 6 | . . . . . . . 1 2 . . . . 3 Swap 31 | . 2 . 1 1 3 8 4 6 2 . . 3 1 Drop 55 | . . . 4 2 3 16 7 10 . . . 7 6 Fire 113 | . 5 1 . 8 14 33 13 29 2 . . . 8 Melee . | . . . . . . . . . . . . . . Ram 2 | . . . . . . . . . . . . . 2 Kick . | . . . . . . . . . . . . . . Crush . | . . . . . . . . . . . . . . Escape Stasis . | . . . . . . . . . . . . . . Rewire . | . . . . . . . . . . . . . . Trap . | . . . . . . . . . . . . . . Miscellaneous . | . . . . . . . . . . . . . . Route ------- -11/Scrapyard -10/Materials -10/Mines -10/Exiles (discovered 2 exits: [*Min x2]) -9/Mines (discovered 2 exits: [*Mat x2]) -8/Materials -7/Factory -6/Factory -5/Factory -4/Factory -4/Upper Caves -4/Upper Caves -4/Warlord -3/Proximity Caves History --------- Turn | Location | Event 20 | -11/Scrapyard | Discovered new exit (range 16) 81 | -11/Scrapyard | Entered Materials 194 | -10/Materials | Discovered new exit (range 10) 211 | -10/Materials | Entered Mines 304 | -10/Mines | Build established: Mutant 321 | -10/Mines | Deemed a non-threat by the Exiles lab entrance 322 | -10/Mines | Discovered new exit (range 5) 330 | -10/Mines | Entered Exiles 368 | -10/Exiles | Discovered new exit (range 15) 394 | -10/Exiles | Met 8R-AWN 424 | -10/Exiles | Met EX-HEX 480 | -10/Exiles | Met EX-DEC 495 | -10/Exiles | Learned location of Zion (-7) 653 | -10/Exiles | Visited The Gauntlet 1055 | -10/Exiles | Met EX-BIN 1094 | -10/Exiles | Aligned with FarCom system 1096 | -10/Exiles | Given EX-Vault access code 1228 | -10/Exiles | Opened EX-Vault 1234 | -10/Exiles | Found Prototype Energy Cannon 1239 | -10/Exiles | Identified Gui. Plasma Cannon 1244 | -10/Exiles | Found Prototype Flight Unit 1252 | -10/Exiles | Found Prototype Processor 1253 | -10/Exiles | Identified Modified TNC 1267 | -10/Exiles | Identified Flying Fortress v7 1302 | -10/Exiles | Warned to stay clear of 0b10 Research branches 1561 | -10/Exiles | Discovered new exit (range 14) 1591 | -10/Exiles | Stole three prototypes: Gui. Plasma Cannon, Flying Fortress v7, Modified TNC 1591 | -10/Exiles | Entered Mines 1838 | -9/Mines | Received a Rocket Launcher from a helpful Derelict 2214 | -9/Mines | Discovered new exit (range 13) 2265 | -9/Mines | Discovered new exit (range 14) 2359 | -9/Mines | Entered Materials 2359 | -8/Materials | Evolved 4 slots: Propulsion x2, Utility x2 2445 | -8/Materials | Destroyed 7 combat bots 2486 | -8/Materials | Discovered new exit (range 15) 2508 | -8/Materials | Entered Factory 2508 | -7/Factory | Evolved 2 slots: Utility x2 2510 | -7/Factory | FarCom data flow suspended 2986 | -7/Factory | Discovered new exit (range 13) 2995 | -7/Factory | Build established: Scavenger-Mutant 2995 | -7/Factory | Entered another Factory area 2995 | -6/Factory | Evolved 2 slots: Power x1, Utility x1 3307 | -6/Factory | Build established: Scout 3344 | -6/Factory | Spotted B-75 Beast 3520 | -6/Factory | Discovered new exit (range 5) 3523 | -6/Factory | Entered another Factory area 3523 | -5/Factory | Evolved 2 slots: Propulsion x1, Utility x1 4075 | -5/Factory | Discovered new exit (range 15) 4082 | -5/Factory | Identified exit to Factory 4083 | -5/Factory | Entered another Factory area 4083 | -4/Factory | Evolved 2 slots: Propulsion x1, Utility x1 4172 | -4/Factory | Discovered new exit (range 14) 4176 | -4/Factory | Identified exit to Upper Caves 4184 | -4/Factory | Entered Upper Caves 4184 | -4/Upper Caves | Spotted 3C-9WC(f) 4185 | -4/Upper Caves | Encountered a Master Thief 4246 | -4/Upper Caves | Gui. Plasma Cannon stolen by Master Thief 4295 | -4/Upper Caves | Attracted the attention of an 0b10 checkpoint 4330 | -4/Upper Caves | Discovered new exit (range 10) 4343 | -4/Upper Caves | Identified exit to Upper Caves 4343 | -4/Upper Caves | Entered another Upper Caves area 4351 | -4/Upper Caves | Attracted the attention of an 0b10 checkpoint 4423 | -4/Upper Caves | Attracted the attention of an 0b10 outpost 4433 | -4/Upper Caves | Spotted B-86 Titan 4452 | -4/Upper Caves | Discovered new exit (range 5) 4455 | -4/Upper Caves | Identified exit to Warlord 4455 | -4/Upper Caves | Entered Warlord 4485 | -4/Warlord | Lost 4 parts (1p1n2u) 4523 | -4/Warlord | Found Prototype Device 4524 | -4/Warlord | Identified Minesniffer Drone Bay 4526 | -4/Warlord | Found Minesniffer Drone Bay 4638 | -4/Warlord | Visited the Vortex Lab 4640 | -4/Warlord | Found Prototype Energy Gun 4641 | -4/Warlord | Identified Vortex Rifle 4644 | -4/Warlord | Found Vortex Rifle 4659 | -4/Warlord | Warlord's base attacked by MAIN.C 4679 | -4/Warlord | Met Warlord 4723 | -4/Warlord | Discovered new exit (range 14) 4730 | -4/Warlord | Identified exit to Proximity Caves 4730 | -4/Warlord | Entered Proximity Caves 4880 | -3/Proximity Caves | Attracted the attention of an 0b10 checkpoint 5058 | -3/Proximity Caves | Core integrity fell below 50% 5069 | -3/Proximity Caves | Core integrity fell below 20% 5075 | -3/Proximity Caves | Destroyed by G-67 Veteran with Plasma Rifle Last Messages --------------- Flying Fortress v7 destroyed. Xenon Bombardment Thruster fries itself beyond repair. Vortex Rifle destroyed. Acquired Xenon Bombardment Thruster. Imp. Medium Armor Plating destroyed. Acquired 10 matter. Mak. Terrain Scanner destroyed. Lgt. Antimatter Reactor destroyed. Enh. Nuclear Core destroyed. Imp. Cesium-ion Thruster destroyed. Field Propulsion Drive destroyed. Lrn. Sensor Array destroyed. Xenon Bombardment Thruster destroyed. Imp. Coolant Injector destroyed. Enh. Nuclear Core destroyed. Slammed into G-67 Veteran. G-67 Veteran knocked back. Slammed into G-67 Veteran. Adv. Targeting Computer destroyed. Imp. Cesium-ion Thruster destroyed. Map ----- +----------------------------------------------------+ | ##????# ## ## $##???### ##????? | | ##?#??# ##### ##????## ##???? | | #?????## ## # ###?## ## #???? | | #??????## ## #??# ## ### ##???? | | #???????### ## ##??# ## ##?## #????? | | #??????#### ## ##???## ##### ##???? | | #?#????# ## #?????# ### #???? | | #?????## ##### #?????# ## #???? | | ???#???# #???# ###???## ## ##???? | | ??####?# #???# #?#????# ### #????? | | ### #?## #?#??# #???????# ### #????? | | #### ##?### #???????# ## #????? | | ### ######### ## #????? | | ## ## ##?#??? | | ###### ## ## ##?????? | | ###### #### ### ##??????? | | #??### #?## #???#???? | | ##? ??# #?### ##???????? | | ########### #####???? #??## ##????????? | | #???????#?# ##??????? ##???####??????????? | | ?????#????# #??????? ######???###########???#? | | #???#??#### #???????### #???????## ##???? | | ####???# #???????#####??????## #???? | | #???# #??????## ##?????## #???? | | ##???# ####????### ####### ## ##???? | | #####?# #??#?#??# g@% ### ##????? | | #### ### ##??????# gsgs #### ##????? | | ### ## ##??#??# ### #??## ##???? | | ## " ####### #?## #???# #???? | | #""%" ### ##??# ##???# #???? | | % " ### ####??# ##????# ##???? | | "#### ##?????# ##?????# ##????? | | ## #?# ##?????# ##??????####?????? | | # ## #?????######????????????????? | | ## ### # ## ### #??????????????????????????? | | ?###??# ### #?# #???????#?????????????????? | | ???????###?# #?## #?????????????????#???????? | | ???????????# ??# #?????????????????? ??????? | | ????#?????? ?? #?? ?????????????? ???????? | | ?????????? ? ####????????????????????????? | | ?????????? ?## ##?????????????????#?????????? | | ????????? ??##????????????????????????????? | | ???????? ????????????????????????????????? | | ??#?#??? ??????????????????????????????#?? | | ??#???? ????????????????????????????????? | | ?#????? ## ????????????????????????????????? | | ??????? ?##? ??????????????????????????????????? | | ???????????? ??????????????????????????????????? | | ?????????????????????????????????????????????????? | | ?????????????????????????????????????????????????? | +----------------------------------------------------+ Best States ------------- Heat Dissipation 54 Coolant Potential 80 Energy Generation 33 Energy Capacity 500 Matter Stores 300 Matter Capacity 300 Sight Range 16 Robot Scan Range 20 Terrain Scan Range 20 Terrain Scan Density 210 Armor Coverage 225 Resistance: KI 30 Core Shielding 20 Evasion (%) 63 Targeting Accuracy 8 Offensive Hacking 10 Item Schematics ----------------- None Robot Schematics ------------------ None Fabricated ------------ Nothing Alien Tech Used ----------------- None Achievements -------------- Omniscient Cartographer Challenges ------------ None Game ------ Seed GhostGravitonFlamer Manual? 0 Play Time 01:27:08 Cumulative 17.4 hours Start 2021.08.13 @ 18:03:35 End 2021.08.15 @ 15:32:58 Sessions 5 Manual Loads 0 Difficulty Rogue Special Mode None Game No. 36 Rogue 16 Adventurer 20 Explorer 0 Win Type - Total 1 Types 1/0/0/0/0/0/0/0/0 Lore% 18 Gallery% 39 Achievement% 27 Wizard Run 0 Options --------- ASCII 0 Keyboard 0 Movement Arrows Keybinds 0 Fullscreen 1 Font 18/SmallcapsGlow Map View 76x50 Tactical HUD 0 Map Filters NONE Filters NONE Steam 1 RUN: acf2a291-e056-42c7-bb22-b7f160c043ba